Cogmind - Beta 13 @@@ ROGUE MODE // 2024.03.30 @ 22:36:51 Player: scrub Result: Destroyed by G-34 Mercenary with Small Laser Performance ------------- Evolutions (1) 500 Regions Visited (2) 400 Robots Destroyed (26) 130 Value Destroyed (658) 658 Prototype IDs (0) 0 Alien Tech Used (0) 0 Bonus (36) 36 TOTAL SCORE: 1724 Bonus ------- High Alert Combat Kills 36 Cogmind --------- Core Integrity 0/400 Matter 79/450 Energy 99/100 System Corruption 0% Temperature Cool (6) Movement Core (300) Ox5 Location -9/Materials Parts ------- > --- POWER (1) -------- (None) > --- PROPULSION (3) --- (None) > --- UTILITY (3) ------ Medium Storage Unit Large Matter Pod > --- WEAPON (2) ------- Great Maul > --- INVENTORY (10) --- Light Ion Engine Improved Ion Engine Improved Ion Engine Improved Ion Engine Improved Heat Sink Mining Laser Peak State ------------ > --- POWER ------------ Improved Ion Engine > --- PROPULSION ------- Aluminum Leg Aluminum Leg > --- UTILITY ---------- Medium Storage Unit Large Matter Pod Improved Light Armor Plating > --- WEAPON ----------- Grenade Launcher Grenade Launcher > --- INVENTORY -------- Light Ion Engine Improved Ion Engine Improved Ion Engine Improved Ion Engine Improved Heat Sink Mining Laser Great Maul [Rating: 12] Favorites ----------- Power Improved Ion Engine Engine Improved Ion Engine Propulsion Aluminum Leg Leg Aluminum Leg Wheel Wheel Utility Large Matter Pod Device Improved Heat Sink Storage Large Matter Pod Protection Improved Light Armor Plating Weapon Grenade Launcher Energy Gun Medium Laser Ballistic Gun Light Assault Rifle Launcher Grenade Launcher Impact Weapon Great Maul Build | -11 -10 -9 ------- Run | Yrd Mat Mat Slots Evolved 2 | . . 2 Power . | . . . Propulsion 1 | . . 1 Utility 1 | . . 1 Weapon . | . . . Parts Attached 16 | 5 9 2 Power 2 | 1 1 . Engine 2 | 1 1 . Core . | . . . Reactor . | . . . Propulsion 4 | 2 2 . Treads . | . . . Leg 2 | . 2 . Wheel 2 | 2 . . Hover . | . . . Flight . | . . . Utility 4 | . 3 1 Device 1 | . 1 . Storage 2 | . 2 . Processor . | . . . Hackware . | . . . Protection 1 | . . 1 Artifact . | . . . Weapon 6 | 2 3 1 Energy Gun 1 | 1 . . Energy Cannon . | . . . Ballistic Gun 1 | 1 . . Ballistic Cannon . | . . . Launcher 3 | . 3 . Special Weapon . | . . . Impact Weapon 1 | . . 1 Slashing Weapon . | . . . Piercing Weapon . | . . . Special Melee Weapon . | . . . Unidentified Prototypes . | . . . Parts Lost 6 | . . 6 Power 1 | . . 1 Propulsion 2 | . . 2 Utility 1 | . . 1 Weapon 2 | . . 2 Highest Loss Streak 6 | . . 6 To Critical Strikes . | . . . Average Slot Usage (%) 86 | . 92 79 Engine 12 | . 14 10 Leg 22 | . 24 20 Wheel 1 | . 3 . Device 1 | . 2 . Storage 20 | . 19 22 Protection 3 | . . 8 Energy Gun 1 | . 3 . Ballistic Gun 2 | . 3 . Launcher 18 | . 19 18 Naked Turns . | . . . Heaviest Build 29 | 6 26 29 Greatest Support 20 | 20 20 20 Greatest Overweight (x) 7 | . 1 7 Average Overweight (x) . | . . 1 Largest Inventory Capacity 10 | 5 10 10 Average Capacity 8 | 5 8 10 Most Carried 8 | 5 7 8 Average Carried 4 | 2 3 6 Final Capacity 10 | 5 10 10 Final Carried 6 | 3 6 6 Class Distribution -------------------- 100% | Mutant Dominant Class ---------------- Mutant | -10/Materials Mutant | -9/Materials Resources | -11 -10 -9 ----------- Run | Yrd Mat Mat Matter Collected 459 | 251 116 92 Remotely . | . . . Salvage Created 680 | 37 157 486 Parts 53 | 3 6 44 Haulers Intercepted . | . . . Recyclers Shooed 1 | . 1 . Parts Field Recycled . | . . . Retrieved Matter . | . . . Parts Self-Destructed . | . . . Prevented . | . . . Kills | -11 -10 -9 ------- Run | Yrd Mat Mat Combat Hostiles Destroyed 16 | 1 4 11 Guns 3 | 1 2 . AOE 12 | . 2 10 Classes Destroyed 6 | 1 1 4 Worker 2 | . . 2 Builder 4 | . . 4 Recycler 1 | . . 1 Watcher 3 | . 1 2 Grunt 15 | 1 4 10 Brawler 1 | . . 1 Best Kill Streak 10 | 1 2 10 Combat Bots Only 4 | 1 2 4 Max Kills in Single Turn 4 | 1 1 4 Gunslinging . | . . . Exploded 4 | . 1 4 Melee . | . . . Uniques/NPCs Destroyed . | . . . Combat | -11 -10 -9 -------- Run | Yrd Mat Mat Hostile Shots Fired 142 | 1 20 121 Missed 38 | . 5 33 Damage Taken 1322 | 10 233 1079 Core 482 | 10 68 404 Absorbed by Shields . | . . . Regen/Repaired (Parts) 47 | . 47 . Core Remaining (%) 82 | 96 68 . Volleys Fired 28 | 1 14 13 Largest 2 | 2 2 2 Hottest 70 | 70 70 60 Shots Fired 53 | 2 27 24 Gun 19 | 2 17 . Cannon . | . . . Launcher 34 | . 10 24 Special . | . . . Kinetic 10 | 1 9 . Thermal 9 | 1 8 . Explosive 34 | . 10 24 Electromagnetic . | . . . Robot Hit Streak 5 | 2 5 5 Robot Miss Streak 3 | . 2 3 Penetration Max . | . . . Secondary Targets . | . . . Shots Hit Robots 18 | 2 10 6 Core Hits 44 | 2 11 31 Critical Kills . | . . . Critical Parts Destroyed . | . . . Critical Strikes . | . . . Melee Attacks 1 | . . 1 Impact 1 | . . 1 Slashing . | . . . Piercing . | . . . Sneak Attacks . | . . . Combat Hostiles . | . . . Follow-up Attacks . | . . . Damage Inflicted 1728 | 21 353 1354 Guns 136 | 21 115 . Cannons . | . . . Explosions 1555 | . 238 1317 Melee 37 | . . 37 Ramming . | . . . Kinetic 47 | 8 39 . Thermal 89 | 13 76 . Explosive 1555 | . 238 1317 Electromagnetic . | . . . Impact 37 | . . 37 Slashing . | . . . Piercing . | . . . Highest Corruption . | . . . Average Corruption . | . . . Corruption Purged . | . . . Corruption Blocked . | . . . Overload Shots . | . . . Overflow Damage 60 | . . 60 Projectiles . | . . . Explosions 53 | . . 53 Melee 7 | . . 7 Knockbacks . | . . . Impact . | . . . Kinetic . | . . . Secondary . | . . . Self-Inflicted Damage 140 | . 44 96 Shots 6 | . 2 4 Rammed . | . . . Targets Rammed . | . . . Kicked . | . . . Crushed . | . . . Highest Temperature 213 | 36 213 8 Average Temperature 75 | 24 87 5 Received Heat Transfer 645 | 6 123 516 Siege Activations . | . . . Robots Corrupted . | . . . Combat Hostiles . | . . . Parts Fried 1 | . . 1 Impact Corruptions 1 | . . 1 Robots Melted . | . . . Combat Hostiles . | . . . Parts Melted 2 | . 2 . Heat Transferred 259 | 37 222 . Parts Sabotaged . | . . . Parts Stolen . | . . . Parts Stripped . | . . . Power Chain Reactions . | . . . Alert | -11 -10 -9 ------- Run | Yrd Mat Mat Peak Influence 442 | 20 188 442 Initial 79 | . 13 79 Average 162 | 3 123 236 Maximum Alert Level 2 | . . 2 Low Security (%) 79 | 100 100 52 Level 1 8 | . . 19 Level 2 12 | . . 28 Level 3 . | . . . Level 4 . | . . . Level 5 . | . . . High Security . | . . . Max Security . | . . . Squads Dispatched 3 | . 1 2 Investigation 1 | . . 1 Extermination . | . . . Reinforcement 2 | . 1 1 Assault . | . . . Garrison . | . . . Intercept . | . . . Searches Triggered . | . . . Construction Impeded 1 | . . 1 Haulers Reinforced . | . . . Active Scanning Responses . | . . . Cargo Convoy Interrupts . | . . . Stealth | -11 -10 -9 --------- Run | Yrd Mat Mat Distress Signals 3 | . 1 2 Communications Jammed . | . . . Distress Signals . | . . . Times Spotted 29 | 1 5 23 Peak Tracking Total 9 | 1 3 9 Tactical Retreats . | . . . Traps | -11 -10 -9 ------- Run | Yrd Mat Mat Traps Triggered . | . . . Indirectly . | . . . Trap Hack Attempts . | . . . Triggered . | . . . Disarmed . | . . . Reprogrammed . | . . . Reused . | . . . Traps Extracted . | . . . Installed . | . . . Triggered . | . . . Machines | -11 -10 -9 ---------- Run | Yrd Mat Mat Machines Disabled 1 | . . 1 Max in Single Turn 1 | . . 1 Machines Repaired . | . . . Machines Dismantled . | . . . Machines Sabotaged . | . . . Overloaded Fab Kills . | . . . Hacking | -11 -10 -9 --------- Run | Yrd Mat Mat Machines Accessed 2 | . 1 1 Terminals 1 | . . 1 Fabricators . | . . . Repair Stations 1 | . 1 . Recycling Units . | . . . Scanalyzers . | . . . Garrison Access . | . . . Total Hacks 5 | . 2 3 Successful 5 | . 2 3 Failed . | . . . Catastrophic . | . . . Database Lockouts . | . . . Manual . | . . . Terminals 3 | . . 3 Fabricators . | . . . Repair Stations 2 | . 2 . Recycling Units . | . . . Scanalyzers . | . . . Garrison Access . | . . . Terminal Hacks 3 | . . 3 Alert Level 3 | . . 3 Fabricator Hacks . | . . . Repair Station Hacks 2 | . 2 . Scan Component 1 | . 1 . Repair 1 | . 1 . Recycling Unit Hacks . | . . . Scanalyzer . | . . . Garrison Access Hacks . | . . . Unauthorized Hacks . | . . . Terminals . | . . . Fabricators . | . . . Repair Stations . | . . . Recycling Units . | . . . Scanalyzers . | . . . Garrison Access . | . . . Data Cores Recovered . | . . . Used . | . . . Hacking Detections 1 | . . 1 Full Trace Events 1 | . . 1 Feedback Events . | . . . Feedback Blocked . | . . . Robot Schematics Acquired . | . . . Robots Built . | . . . Authchips . | . . . Time . | . . . Total Robot Build Rating . | . . . Part Schematics Acquired . | . . . Parts Built . | . . . Authchips . | . . . Time . | . . . Total Part Build Rating . | . . . Parts Repaired 1 | . 1 . Time 26 | . 26 . Parts Recycled . | . . . Recycled Matter . | . . . Retrieved Matter . | . . . Retrieved Components . | . . . Parts Scanalyzed . | . . . Part Schematics Acquired . | . . . Parts Damaged . | . . . Bothacking | -11 -10 -9 ------------ Run | Yrd Mat Mat Used RIF Installer . | . . . Robots Hacked . | . . . Non-combat . | . . . Combat . | . . . Robot Hacks Applied . | . . . Relay Couplers Released . | . . . Fabnet Peak Effective % . | . . . Robots Rewired . | . . . Allies Hacked . | . . . Hacks Repelled . | . . . Allies | -11 -10 -9 -------- Run | Yrd Mat Mat Total Allies . | . . . Largest Group . | . . . Highest-Rated Group . | . . . Highest-Rated Ally . | . . . Total Orders . | . . . Ally Attacks . | . . . Total Damage . | . . . Kills . | . . . Allies Corrupted . | . . . Allies Melted . | . . . Intel | -11 -10 -9 ------- Run | Yrd Mat Mat Robot Analysis Total . | . . . Derelict Logs Recovered . | . . . Drone Launches . | . . . Drone Recoveries . | . . . Exploration | -11 -10 -9 ------------- Run | Yrd Mat Mat Turns Passed 804 | 66 391 347 Spaces Moved 425 | 70 200 155 Core 23 | 19 . 4 Treads . | . . . Legs 324 | . 173 151 Wheels 78 | 51 27 . Hover . | . . . Flight . | . . . Fastest Speed 50 | 50 80 190 Average Speed 154 | 71 150 196 Slowest Speed 400 | 80 190 400 Overloaded Moves . | . . . Propulsion Burnouts . | . . . Robots Hopped . | . . . Cave-ins Triggered . | . . . Exploration Rate (%) 18 | 6 30 19 Regions Visited 2 Branch Regions . Pre-discovered Areas . | . . . Known Exits Taken . | . . . Unknown Exits Taken 2 | 1 1 . Scrap Searched . | . . . Spaces Dug . | . . . Terrain Destroyed 153 | . 42 111 Melee . | . . . Projectile . | . . . AOE 153 | . 42 111 Terrain Rammed . | . . . Walls Destroyed . | . . . Machines Disabled . | . . . Actions | -11 -10 -9 --------- Run | Yrd Mat Mat Total 524 | 83 268 173 Wait 23 | . 23 . Move 423 | 69 199 155 Hop . | . . . Pick Up 24 | 8 14 2 Fast Attach . | . . . Attach 11 | 5 4 2 Detach 1 | . 1 . Swap 5 | . 5 . Drop 8 | . 8 . Fire 28 | 1 14 13 Melee 1 | . . 1 Ram . | . . . Kick . | . . . Crush . | . . . Escape Stasis . | . . . Rewire . | . . . Trap . | . . . Miscellaneous . | . . . Route ------- -11/Scrapyard -10/Materials -9/Materials History --------- Turn | Location | Event 2 | -11/Scrapyard | Met Revision 17 51 | -11/Scrapyard | Discovered new exit (range 8) 67 | -11/Scrapyard | Entered Materials 317 | -10/Materials | Build established: Mutant 334 | -10/Materials | Discovered new exit (range 8) 422 | -10/Materials | Repaired Grenade Launcher 458 | -10/Materials | Entered another Materials area 458 | -9/Materials | Evolved 2 slots: Propulsion x1, Utility x1 794 | -9/Materials | Core integrity fell below 50% 801 | -9/Materials | Core integrity fell below 20% 805 | -9/Materials | Destroyed by G-34 Mercenary with Small Laser Last Messages --------------- Destroyed Grenade Launcher. K-01 Serf destroyed. Aluminum Leg destroyed. U-05 Engineer lays Concrete. U-05 Engineer builds a Door. U-05 Engineer lays Concrete. Imp. Light Armor Plating destroyed. U-05 Engineer lays Concrete. Bump into an enemy to attack with the active melee weapon. Even while active, melee weapons do not fire together with ranged weapons in the same volley. Aluminum Leg destroyed. Imp. Ion Engine destroyed. Destroyed Heat Sink. G-34 Mercenary system corrupted by crushing effect. G-34 Mercenary system terminally corrupted. Ion Engine fried. [Achievement: First Step to Greatness] Map ----- +----------------------------------------------------+ | ?????????????????????????????????????????????????? | | ?????????????????????????????????????????????????? | | ?????????????????????????????????????????????????? | | ?????????????????????????????????????????????????? | | ?????????????????????????????? ????????????????? | | ???????????????????????????? ????????????????? | | ????????????????????????? ?# #???????????????? | | ?????????????????????? ?# #######???????### | | ?????????????????????? # ## [ #??????# | | ????????????????????? [[ # ## #??????# | | ???????????????????????[= # ## ######## [[ | | ?????????????? ??????? # #? # # [[ | | ?????????????# #??????? ## # # [[ | | ?????????????+ #????????# ## # # | | ?????????????# #????????# ## # # | | ????????????## #????????## ## # # ! | | ????????????? #????????## ## # ## | | ????????????? #????????# %#####+##### | | ?????????????# #????????# | = | | ?????????????# #????????# ! =*!= | | ???????####### +????????## % | | ??????? # #????????# ! ########## | | ??????? # #????????# % # # # | | ??????#""" # #????????## = ### # | | ??????#""" # ########### """ #?# # | | ???????""" # @% """ #?# + | | ????????? =# a gg # """ #?# # | | ??????####+### gg # #?# # | | ??????# = ######################?# # | | ??????# ###????????????????????# | | ??????# " # #????????????????????# | | ####### ###????????????????????# # | | ##?????????????????????######## | | #?????????????????????????????##= | | #????????????????????????????? | | ###### !! ######????????????????????????## | | #????# !! ## //#????????????????????????? | | #????# !! ## /#?????????????????????????? | | +????# ## !#??????????????????????????? | | #????# !!#??????????????????????????? | | #????+ !!! !!#??????????????????????????? | | #????# !!! !!#??????????????????????????? | | #????# !! #####??????????????????????????? | | #????###+##########??????????????????????????????? | | #????????????????????????????????????????????????? | | #????????????????????????????????????????????????? | | #????????????????????????????????????????????????? | | #????????????????????????????????????????????????? | | ?????????????????????????????????????????????????? | | ?????????????????????????????????????????????????? | +----------------------------------------------------+ Best States ------------- Heat Dissipation 39 Energy Generation 12 Energy Capacity 265 Matter Stores 357 Matter Capacity 450 Sight Range 16 Terrain Scan Density 10 Armor Coverage 150 Evasion (%) 55 Item Schematics ----------------- None Robot Schematics ------------------ None Fabricated ------------ Nothing Alien Tech Used ----------------- None Achievements -------------- First Step to Greatness One Hack Too Far Oops Uninvited Guest Challenges ------------ None Game ------ Seed GuidanceDeliveryReplicator Manual? 0 Play Time 00:20:25 Cumulative 0.3 hours Start 2024.03.30 @ 22:04:03 End 2024.03.30 @ 22:36:51 Sessions 1 Manual Loads 0 Difficulty Rogue Special Mode None Game No. 1 Rogue 1 Adventurer 0 Explorer 0 Win Type - Total 0 Types 0/0/0/0/0/0/0/0/0 Lore% 0 Gallery% 1 Achievement% 1 Wizard Run 0 Options --------- Layout 1 ASCII 0 Keyboard 0 Movement Numpad Keybinds 0 Fullscreen 2 Font 24/Smallcaps Map View 50x35 Zoom Use 0% Tactical HUD 0 Map Filters NONE Filters NONE Steam 1 RUN: 33f988c8-abdb-468f-aa52-f65a35ab7b29